bitfinex/quotes_ETHUSD_20240730
["timestamp","ask_amount","ask_price","bid_price","bid_amount"]
[1722331101920,1.2586608,3346.7,3346.3,2.98831]
[1722331102223,4.772368,3346.8,3346.3,2.98831]
[1722331102391,4.772368,3346.8,3346.4,0.09341547]
[1722331104218,7.760348,3346.8,3346.4,0.09341547]
[1722331104412,2.4054,3346.7,3346.0,2.98864]
[1722331104621,4.3109568,3346.6,3346.5,0.09341547]
[1722331104792,4.3109568,3346.6,3346.0,2.98864]
[1722331104983,4.3109568,3346.6,3346.5,0.09342433]
[1722331105184,4.3109568,3346.6,3346.0,2.98864]
[1722331105407,4.3109568,3346.6,3346.5,0.09342433]
[1722331105608,1.3227768,3346.6,3346.0,2.98858]
[1722331105807,1.3227768,3346.6,3346.5,0.09342433]
[1722331105808,0.55,3346.6,3346.5,0.09342433]
[1722331106017,2.98787,3346.9,3346.5,0.09342433]
[1722331106018,0.55,3346.7,3346.5,0.09342433]
[1722331106219,6.53794,3346.8,3346.3,2.98837]
[1722331106448,6.53794,3346.8,3346.6,0.09348631]
[1722331106583,8.448971,3346.8,3346.3,2.98837]
[1722331106787,5.461031,3346.8,3346.4,2.98827]
[1722331107091,5.461031,3346.8,3346.4,3.08175631]
[1722331108824,3.55,3346.8,3346.5,2.98818]
[1722331109040,7.3,3347.1,3346.7,5.37445]
[1722331109331,7.3,3347.1,3346.9,2.98778]
[1722331109900,7.3,3347.1,3347.0,0.09328265]
[1722331111402,7.85,3347.1,3347.0,0.09328265]
[1722331112814,13.22846,3347.1,3347.0,0.09328265]
[1722331113014,18.773966,3347.1,3347.0,0.09328265]
[1722331113225,2.98807,3346.7,3346.1,2.98848]
[1722331113551,2.98807,3346.7,3346.2,3.08164412]
[1722331113760,0.55,3346.6,3346.2,0.09319412]
[1722331114103,0.55,3346.6,3346.0,2.98858]
[1722331114104,0.55,3346.6,3346.0,2.98862]
[1722331114460,3.53812,3346.6,3346.1,3.08172412]
[1722331115160,2.9882,3346.5,3346.1,0.09319412]
[1722331116135,0.55,3346.6,3346.1,3.08169412]
[1722331121736,0.55,3346.6,3346.2,2.98846]
[1722331121954,0.55,3346.6,3346.3,3.08151098]
[1722331122132,0.55,3346.8,3346.3,3.08146098]
[1722331122306,2.98793,3346.8,3346.3,3.08146098]
[1722331122680,0.55,3346.7,3346.3,3.08146098]
[1722331122960,3.53802,3346.7,3346.3,0.09314098]
[1722331123160,5.3774009,3346.7,3346.3,0.09314098]
[1722331123316,2.98811,3346.6,3346.3,0.09314098]
[1722331123515,2.98811,3346.6,3345.9,3.97469]
[1722331123516,0.55,3346.5,3345.9,3.97469]
[1722331123723,0.55,3346.5,3346.0,0.09314098]
[1722331124124,0.55,3346.5,3346.2,2.98845]
[1722331124351,0.55,3346.6,3346.3,0.09343318]
[1722331128607,3.53813,3346.6,3346.4,0.09343318]
[1722331128817,4.93005999,3346.6,3346.4,0.09343318]
[1722331129024,4.93005999,3346.6,3346.1,2.98855]
[1722331129228,4.93005999,3346.6,3346.5,0.09345974]
[1722331129377,4.93005999,3346.6,3346.1,2.98855]
[1722331129574,4.93005999,3346.6,3346.5,0.09345974]
[1722331129773,4.93005999,3346.6,3346.1,2.98855]
[1722331130029,4.93005999,3346.6,3346.5,0.09345974]
[1722331130233,4.93005999,3346.6,3346.1,2.98855]
[1722331130545,0.55,3346.6,3346.5,0.09345974]
[1722331130832,0.55,3346.7,3346.5,0.09345974]
[1722331130979,0.55,3346.8,3346.3,2.98832]
[1722331131185,0.55,3346.8,3346.6,0.09345974]
[1722331131388,2.27146,3346.8,3346.3,2.98832]
[1722331131697,5.25943,3346.8,3346.3,2.98832]
[1722331131906,2.98802,3346.7,3346.4,0.09345531]
[1722331132212,2.98802,3346.7,3346.1,5.97696]
[1722331132213,0.55,3346.6,3346.1,2.98848]
[1722331132415,0.55,3346.6,3346.5,0.09341546]
[1722331132617,1.773345,3346.6,3346.1,2.98848]
[1722331132839,1.773345,3346.6,3346.5,0.09341546]
[1722331132993,1.773345,3346.6,3346.1,2.98848]
[1722331133193,0.55,3346.6,3346.5,0.09341546]
[1722331133392,0.55,3346.6,3346.1,2.98848]
[1722331133591,0.55,3346.6,3346.5,0.09341546]
[1722331133803,0.55,3346.6,3346.1,2.98848]
[1722331134041,0.55,3346.6,3346.5,0.09341546]
[1722331134343,0.55,3346.6,3346.1,2.98848]
[1722331134829,0.55,3346.6,3346.2,0.09341546]
[1722331136878,3.53811,3346.6,3346.2,0.09341546]
[1722331138050,2.2867,3346.5,3346.2,0.09341546]
[1722331139842,3.53811,3346.6,3346.2,0.09341546]
[1722331140152,3.0,3346.9,3346.4,2.98828]
[1722331140363,7.3,3347.0,3346.3,0.986]
[1722331140364,7.3,3347.0,3346.8,2.98788]
[1722331140958,7.3,3347.0,3346.9,0.09347748]
[1722331141755,7.85,3347.0,3346.9,0.09347748]
[1722331142055,7.85,3347.0,3346.8,2.98788]
[1722331142406,7.85,3347.0,3346.9,0.09339778]
[1722331142907,0.55,3347.0,3346.8,2.98786]
[1722331143107,2.98757,3347.2,3346.9,0.09339778]
[1722331143452,5.45311,3347.1,3346.6,2.98809]
[1722331143605,0.55,3347.0,3346.6,2.98804]
[1722331143818,0.55,3347.0,3346.7,2.98796]
[1722331144018,0.55,3347.1,3346.7,2.98796]
[1722331144921,0.55,3347.1,3346.8,0.09330923]
[1722331146578,0.55,3347.1,3346.8,3.08116923]
[1722331146776,0.55,3347.3,3346.8,3.08116923]
[1722331147946,0.55,3347.3,3346.8,0.09330923]
[1722331148163,3.95097647,3347.2,3346.7,2.98796]
[1722331148365,0.55,3347.1,3346.9,2.98781]
[1722331148647,0.55,3347.3,3346.9,2.98781]
[1722331148845,0.55,3347.3,3347.0,0.09325168]
[1722331149046,3.53748,3347.3,3346.8,2.98791]
[1722331149246,3.53748,3347.3,3347.1,0.09325168]
[1722331149488,3.53748,3347.3,3346.8,2.98791]
[1722331149867,3.53748,3347.3,3346.9,0.09325168]
[1722331150565,3.53748,3347.3,3347.0,2.98767]
[1722331150566,0.55,3347.3,3347.0,2.98767]
[1722331150897,7.3,3347.6,3347.3,2.98741]
[1722331151071,0.55,3347.5,3347.3,2.98741]
[1722331151247,0.55,3347.5,3347.4,0.09293294]
[1722331151659,0.55,3347.5,3347.1,2.9876]
[1722331152055,0.55,3347.5,3347.2,0.09293294]
[1722331152247,0.55,3347.5,3347.2,3.08049294]
[1722331152572,0.55,3347.6,3347.3,5.97489]
[1722331152774,0.55,3347.6,3346.9,0.986]
[1722331152775,0.55,3347.6,3347.4,2.98739]
[1722331153105,3.0,3347.8,3347.5,0.09293294]
[1722331153106,0.55,3347.7,3347.5,0.09293294]
[1722331153889,0.55,3347.8,3347.5,0.09293294]
[1722331154488,0.55,3347.8,3347.5,3.08021294]
[1722331154704,0.55,3347.8,3347.7,2.98712]
[1722331154845,0.55,3347.9,3347.7,2.98712]
[1722331155048,0.55,3348.1,3347.7,2.98712]
[1722331155257,0.55,3348.1,3347.8,0.09293294]
[1722331155652,0.55,3348.1,3347.7,2.98712]
[1722331155848,0.55,3348.1,3347.9,0.09280459]
[1722331156053,0.55,3348.1,3347.7,2.98712]
[1722331156285,0.55,3348.1,3348.0,0.09280459]
[1722331156488,0.55,3348.1,3347.7,2.98712]
[1722331156811,3.53676,3348.1,3348.0,0.09280459]
[1722331156969,2.98687,3348.0,3347.8,0.09280459]
[1722331157303,2.98687,3348.0,3347.5,2.98721]
[1722331157304,0.55,3347.9,3347.5,2.98721]
[1722331157678,0.55,3347.9,3347.6,2.98713]
[1722331157884,0.55,3348.0,3347.6,2.98713]
[1722331158055,3.53688,3348.0,3347.4,2.98731]
[1722331158393,3.53688,3348.0,3347.4,2.98738]
[1722331158589,0.55,3348.0,3347.5,2.98728]
[1722331158826,0.55,3348.0,3347.6,2.98716]
[1722331159614,0.55,3348.1,3347.7,2.98709]
[1722331159914,0.55,3348.1,3347.7,3.07977068]
[1722331161311,3.53678,3348.1,3347.7,0.09268068]
[1722331161612,5.246292,3348.1,3347.5,2.98725]
[1722331161817,2.98686,3348.0,3347.8,0.09235317]
[1722331162018,2.98686,3348.0,3347.5,2.98725]
[1722331162019,0.55,3347.9,3347.5,2.98725]
[1722331163222,0.55,3347.9,3347.6,2.98719]
[1722331163419,0.55,3348.0,3347.6,2.98719]
[1722331163601,0.55,3348.1,3347.6,2.98719]
[1722331163805,0.55,3348.1,3347.8,2.98703]
[1722331164184,0.55,3348.1,3347.5,2.98724]
[1722331164379,3.53677,3348.1,3347.5,2.98724]
[1722331164583,3.53677,3348.1,3347.5,2.98723]
[1722331165209,3.53677,3348.1,3347.3,6.32584]
[1722331165210,2.98691,3348.0,3347.3,6.32579]
[1722331165409,2.4659,3347.8,3347.1,3.9736]
[1722331165601,3.53712,3347.7,3347.2,2.98749]
[1722331167699,3.53712,3347.7,3347.0,2.4324]
[1722331167700,2.98736,3347.5,3347.0,2.4324]
[1722331167895,0.55,3347.4,3346.9,3.97379]
[1722331168709,0.55,3347.4,3347.1,0.986]
[1722331169108,0.55,3347.4,3346.7,5.25814]
[1722331169446,2.98749,3347.3,3346.9,0.986]
[1722331169822,0.55,3347.4,3346.9,0.986]
[1722331170019,3.53741,3347.4,3346.9,0.986]
[1722331170346,3.53741,3347.4,3346.9,3.97382]
[1722331170646,0.55,3347.4,3347.0,2.98769]
[1722331170827,2.98729,3347.6,3346.9,3.97382]
[1722331170828,0.55,3347.5,3346.9,3.97382]
[1722331171213,0.55,3347.5,3347.1,2.98765]
[1722331171521,0.55,3347.5,3347.1,3.97365]
[1722331172421,0.55,3347.5,3347.2,2.98756]
[1722331172744,0.55,3347.6,3347.2,2.98756]
[1722331174234,0.55,3347.6,3347.3,0.986]
[1722331174853,0.55,3347.6,3347.4,0.09247708]
[1722331177323,0.55,3347.7,3347.4,0.09247708]
[1722331177910,3.53713,3347.7,3347.4,0.09247708]
[1722331180773,0.55,3347.7,3347.4,2.98732]
[1722331180978,3.55,3347.9,3347.5,1.07847708]
[1722331181115,0.55,3347.9,3347.5,1.07847708]
[1722331181466,0.55,3347.9,3347.5,4.06575708]
[1722331182227,0.55,3347.9,3347.5,3.07975708]
[1722331183364,0.55,3347.9,3347.5,4.06575708]
[1722331183565,0.55,3348.0,3347.7,2.98707]
[1722331183891,0.55,3348.0,3347.8,3.07938202]
[1722331184037,7.3,3348.1,3347.8,3.07938202]
[1722331184543,2.98659,3348.3,3347.8,3.07938202]
[1722331184745,3.55,3348.2,3347.8,3.07938202]
[1722331185476,3.55,3348.2,3347.9,2.98693]
[1722331185477,0.55,3348.2,3347.9,2.98693]
[1722331185676,3.55,3348.3,3348.0,2.98684]
[1722331185864,0.55,3348.3,3348.0,3.07910451]
[1722331186065,3.0,3348.6,3348.1,2.98675]
[1722331186066,0.55,3348.5,3348.1,2.98675]
[1722331186780,0.55,3348.5,3348.2,0.09222045]
[1722331187481,0.55,3348.5,3348.2,3.07889045]
[1722331187684,5.28693,3349.0,3348.3,3.97254]
[1722331187978,2.3009,3349.0,3348.4,2.98648]
[1722331188176,2.98614,3348.8,3348.4,0.09216736]
[1722331188982,3.53625,3348.7,3348.4,0.09216736]
[1722331189355,3.53625,3348.7,3348.1,3.97275]
[1722331189544,3.53625,3348.7,3348.5,0.09216736]
[1722331189746,4.1107808,3348.7,3348.1,3.97275]
[1722331189985,3.53625,3348.7,3348.6,0.09216736]
[1722331190153,3.53625,3348.7,3348.0,2.98685]
[1722331190154,2.98636,3348.6,3348.0,2.98685]
[1722331190557,0.55,3348.7,3348.2,0.986]
[1722331190843,3.0,3348.8,3348.3,2.98654]
[1722331191085,0.55,3348.7,3348.3,2.98654]
[1722331191556,3.53614,3348.8,3348.3,2.98654]
[1722331192643,0.55,3348.8,3348.2,3.97261]
[1722331192848,4.729161,3348.8,3348.2,3.97261]
[1722331193069,2.98632,3348.6,3348.0,0.986]
[1722331193585,7.715381,3348.8,3348.1,2.9867]
[1722331193784,7.715381,3348.8,3348.2,2.98665]
[1722331193785,4.729161,3348.8,3348.2,2.98665]
[1722331193988,3.53619,3348.8,3348.3,2.98658]
[1722331194747,0.55,3348.8,3348.4,0.986]
[1722331194990,2.4076,3349.0,3348.6,2.98632]
[1722331194991,0.55,3348.9,3348.6,2.98632]
[1722331195149,0.55,3348.9,3348.5,2.98635]
[1722331196158,2.98623,3348.7,3348.2,2.98666]
[1722331196482,0.55,3348.9,3348.3,2.98657]
[1722331196678,1.242961,3348.9,3348.3,2.98657]
[1722331197277,2.98624,3348.7,3348.1,3.97269]
[1722331197492,0.55,3348.6,3348.2,2.98666]
[1722331197690,0.55,3348.6,3348.1,3.97269]
[1722331198567,3.53632,3348.6,3348.1,3.97269]
[1722331198984,0.55,3348.6,3348.1,3.97269]
[1722331199200,0.55,3348.6,3348.2,2.98667]
[1722331199905,0.55,3348.6,3347.9,2.3056]
[1722331200110,2.3448,3348.5,3347.9,0.986]
[1722331200293,0.55,3348.4,3348.0,2.98684]
[1722331200492,3.53656,3348.4,3347.8,2.98695]
[1722331200890,0.55,3348.4,3347.9,3.97288]
[1722331201200,0.55,3348.4,3348.0,2.98678]
[1722331201406,0.55,3348.4,3347.9,3.97288]
[1722331201567,2.98663,3348.3,3347.9,0.986]
[1722331201772,0.55,3348.2,3347.9,3.97289]
[1722331202010,0.55,3348.4,3347.9,3.97288]
[1722331202218,3.53656,3348.4,3347.9,0.986]
[1722331202825,2.98659,3348.3,3347.9,0.986]
[1722331203117,3.53668,3348.2,3347.6,2.98714]
[1722331203325,3.53668,3348.2,3347.5,2.98727]
[1722331203326,2.732468,3348.1,3347.5,2.98727]
[1722331203629,2.732468,3348.1,3347.4,2.98734]
[1722331203630,0.55,3348.0,3347.6,2.98721]
[1722331203835,0.55,3348.0,3347.7,2.98712]
[1722331204201,3.55,3348.3,3347.7,2.98706]
[1722331204401,3.55,3348.3,3347.8,2.98702]
[1722331204718,3.55,3348.3,3347.7,2.98706]
[1722331204885,2.98675,3348.2,3347.9,0.08863421]
[1722331205085,0.55,3348.1,3347.6,3.97316]
[1722331205515,3.53677,3348.1,3347.7,0.08863421]
[1722331205896,3.53677,3348.1,3347.6,2.98716]
[1722331206103,3.53677,3348.1,3347.8,0.08863421]
[1722331206417,2.4974,3348.0,3347.9,0.08863421]
[1722331206622,6.03425,3348.0,3347.9,0.08863421]
[1722331206831,6.03425,3348.0,3347.4,2.98737]
[1722331206832,2.98708,3347.8,3347.3,3.97346]
[1722331207007,2.98713,3347.7,3347.2,2.98755]
[1722331208091,0.55,3347.6,3347.2,2.98755]
[1722331210699,0.55,3347.6,3347.1,0.986]
[1722331210909,2.9873,3347.5,3347.1,0.986]
[1722331211106,0.55,3347.6,3347.1,3.97365]
[1722331211620,0.55,3347.6,3347.2,2.98756]
[1722331212848,3.53727,3347.6,3347.1,0.986]
[1722331213057,3.53727,3347.6,3347.1,3.97364]
[1722331213913,3.53727,3347.6,3347.1,0.986]
[1722331214123,5.4674,3347.5,3347.1,0.986]
[1722331214454,2.4801,3347.5,3347.1,3.97366]
[1722331215111,0.55,3347.4,3347.0,2.98774]
[1722331215312,0.55,3347.4,3347.1,0.986]
[1722331216231,0.55,3347.4,3346.9,0.986]
[1722331218229,3.53744,3347.4,3346.9,0.986]
[1722331219174,2.98752,3347.3,3346.9,0.986]
[1722331219888,2.98752,3347.3,3347.0,0.08935084]
[1722331221187,3.5374,3347.4,3347.0,0.08935084]
[1722331223637,6.52486,3347.4,3347.0,0.08935084]
[1722331223832,3.5374,3347.4,3347.0,0.08935084]
[1722331224552,2.98752,3347.3,3347.0,0.08935084]
[1722331225325,3.53757,3347.2,3347.0,0.08935084]
[1722331225468,2.98757,3347.2,3346.7,3.97399]
[1722331225653,2.98757,3347.2,3347.1,0.08934642]
[1722331225853,2.98757,3347.2,3346.7,0.986]
[1722331225854,2.98769,3347.1,3346.7,0.986]
[1722331228992,5.97541,3347.1,3346.7,0.986]
[1722331229385,2.98769,3347.1,3346.7,0.986]
[1722331229758,5.97542,3347.1,3346.7,0.986]
[1722331229971,2.98769,3347.1,3346.7,0.986]
[1722331230170,3.53745,3347.4,3346.8,2.98785]
[1722331230373,0.55,3347.4,3346.9,6.27105]
[1722331230574,0.55,3347.5,3347.0,2.98774]
[1722331230758,0.55,3347.5,3346.9,3.2833]
[1722331230759,6.53736,3347.5,3346.9,3.2833]
[1722331230957,2.98744,3347.4,3346.9,3.2833]
[1722331231204,0.55,3347.3,3346.9,3.2833]
[1722331231506,0.55,3347.3,3346.9,6.27113]
[1722331233002,0.55,3347.3,3347.0,2.98774]
[1722331233174,3.0,3347.5,3346.9,6.27107]
[1722331233175,0.55,3347.4,3346.9,6.27107]
[1722331233379,0.55,3347.4,3347.0,2.98774]
[1722331234876,0.55,3347.4,3347.1,0.1314166]
[1722331235096,0.55,3347.4,3347.0,2.98774]
[1722331235306,0.55,3347.4,3347.2,0.1314166]
[1722331235526,0.55,3347.4,3347.1,2.98765]
[1722331235823,0.55,3347.4,3347.3,0.1314166]
[1722331236025,0.55,3347.4,3347.0,2.98772]
[1722331236164,0.55,3347.4,3347.3,0.1314166]
[1722331236373,0.55,3347.4,3347.0,2.98769]
[1722331236608,0.55,3347.4,3347.3,0.1314166]
[1722331236923,0.55,3347.4,3346.9,6.27112]
[1722331237091,0.55,3347.4,3347.3,0.1314166]
[1722331237278,0.55,3347.4,3346.9,6.27112]
[1722331237468,0.55,3347.4,3347.3,0.1314166]
[1722331237795,0.55,3347.4,3347.0,2.98773]
[1722331238012,0.55,3347.4,3347.3,0.1314166]
[1722331238175,0.55,3347.4,3347.0,2.98773]
[1722331238379,0.55,3347.4,3347.3,0.1314166]
[1722331238880,0.55,3347.4,3347.0,2.98773]
[1722331239104,0.55,3347.4,3347.3,0.1314166]
[1722331239287,0.55,3347.4,3346.9,3.2833]
[1722331239513,0.55,3347.4,3347.3,0.1314166]
[1722331239678,0.55,3347.4,3346.9,3.97382]
[1722331240012,0.55,3347.4,3347.3,0.1314166]
[1722331240229,0.55,3347.4,3346.9,3.97382]
[1722331240439,0.55,3347.4,3347.3,0.13138564]
[1722331240659,3.53739,3347.4,3346.9,3.97382]
[1722331240834,3.53739,3347.4,3347.3,0.13138564]
[1722331241019,7.23235952,3347.4,3346.9,2.98782]
[1722331241223,4.23235952,3347.4,3347.3,0.13138564]
[1722331241397,7.23235952,3347.4,3346.9,2.98782]
[1722331241601,4.23235952,3347.4,3347.3,0.13138564]
[1722331241850,7.23235952,3347.4,3346.9,2.98782]
[1722331242154,6.53739,3347.4,3346.9,2.98782]
[1722331242358,3.55,3347.4,3347.0,0.13138564]
[1722331245956,3.55,3347.4,3347.0,3.11912564]
[1722331251248,2.4275,3347.3,3347.0,0.13138564]
[1722331251450,5.41503,3347.3,3346.8,2.98784]
[1722331251894,5.41503,3347.3,3346.9,0.13137234]
[1722331260092,5.41503,3347.3,3346.6,2.98805]
[1722331260270,5.41503,3347.3,3347.0,0.13139889]
[1722331260471,5.41503,3347.3,3346.6,2.98805]
[1722331260823,2.98766,3347.1,3346.6,2.98805]
[1722331261026,2.98766,3347.1,3346.7,0.13144759]
[1722331261572,2.98776,3347.0,3346.7,0.13144759]
[1722331261778,2.98766,3347.1,3346.5,0.986]
[1722331261779,2.98784,3346.9,3346.5,0.986]
[1722331262122,2.98784,3346.9,3346.8,0.13144759]
[1722331262304,2.98784,3346.9,3346.5,0.986]
[1722331262501,2.98784,3346.9,3346.4,5.97644]
[1722331262708,5.9754,3347.1,3346.5,2.98818]
[1722331262872,2.4275,3347.3,3346.6,0.13144759]
[1722331263204,2.4275,3347.3,3345.8,2.3481]
[1722331263205,2.4438,3346.4,3345.8,2.3481]
[1722331263400,2.4438,3346.4,3345.9,3.97473]
[1722331263606,2.98813,3346.6,3345.9,3.97473]
[1722331263802,2.2743,3346.7,3346.1,2.98855]
[1722331263968,0.55,3346.6,3345.9,3.97473]
[1722331264174,0.55,3346.6,3346.1,2.98853]
[1722331264381,0.55,3346.6,3345.9,3.97464]
[1722331264618,5.97654,3346.5,3345.9,3.97464]
[1722331264979,2.98833,3346.4,3346.0,0.13144759]
[1722331265181,2.98842,3346.3,3345.8,5.33691]
[1722331265380,2.98842,3346.3,3346.1,0.13144759]
[1722331265584,2.98842,3346.3,3345.8,2.98881]
[1722331265822,2.98842,3346.3,3346.2,0.13144759]
[1722331265984,2.98842,3346.3,3345.8,2.98881]
[1722331266184,2.98842,3346.3,3346.2,0.13144759]
[1722331266427,2.98842,3346.3,3345.8,2.98881]
[1722331266632,2.98842,3346.3,3346.2,0.13144759]
[1722331266844,2.98869,3346.0,3345.4,2.98914]
[1722331267011,2.98882,3345.8,3345.2,5.41882]
[1722331267210,2.98882,3345.8,3345.2,6.40482]
[1722331267527,2.98882,3345.8,3345.2,3.97532]
[1722331267727,2.98873,3345.9,3345.0,3.9755]
[1722331267914,2.98873,3345.9,3345.2,2.98933]
[1722331268311,2.98873,3345.9,3345.2,3.97533]
[1722331268631,2.98888,3345.8,3345.2,3.97533]
[1722331268838,2.98891,3345.7,3345.2,0.986]
[1722331269723,2.98901,3345.6,3345.0,3.97551]
[1722331270559,2.98901,3345.6,3344.9,5.27099]
[1722331270708,2.98918,3345.4,3344.9,2.98959]
[1722331271113,2.98918,3345.4,3344.6,5.29232]
[1722331271114,0.55,3345.3,3344.6,5.29232]
[1722331271428,2.98941,3345.2,3344.6,6.27832]
[1722331271629,2.98947,3345.1,3344.6,0.986]
[1722331271825,2.98941,3345.2,3344.6,3.97589]
[1722331272027,2.98941,3345.2,3344.6,0.986]
[1722331272216,3.53929,3345.3,3344.7,2.98971]
[1722331272417,0.55,3345.3,3344.9,2.98956]
[1722331272624,3.53909,3345.5,3345.0,0.986]
[1722331272950,0.55,3345.5,3345.0,3.97548]
[1722331273144,3.55,3345.6,3345.0,3.97548]
[1722331273568,6.539,3345.6,3345.0,3.97548]
[1722331273863,2.98909,3345.5,3345.0,3.97548]
[1722331274205,0.55,3345.4,3345.0,3.97548]
[1722331274423,3.55,3345.6,3345.0,3.97548]
[1722331274424,6.53908,3345.6,3345.0,3.97548]
[1722331275042,2.9891,3345.5,3345.0,3.97548]
[1722331275280,0.55,3345.4,3345.0,2.98948]
[1722331276131,0.55,3345.4,3345.1,2.98943]
[1722331276331,0.55,3345.4,3345.0,2.98946]
[1722331276332,0.55,3345.5,3345.2,2.98934]
[1722331277029,3.0,3345.6,3345.2,3.97534]
[1722331277231,3.0,3345.8,3345.2,3.97534]
[1722331277440,0.55,3345.7,3345.3,2.98926]
[1722331278379,0.55,3345.7,3345.2,0.986]
[1722331279067,0.55,3345.7,3345.2,3.9753]
[1722331279241,0.55,3345.7,3345.2,0.986]
[1722331279752,0.55,3345.8,3345.4,2.9891]
[1722331280153,0.55,3345.8,3345.5,0.132962]
[1722331280358,0.55,3345.8,3345.2,3.97528]
[1722331280581,0.55,3345.8,3345.6,0.132962]
[1722331280746,0.55,3345.8,3345.3,2.98922]
[1722331280931,0.55,3345.8,3345.7,0.132962]
[1722331281270,0.55,3345.8,3345.4,2.98916]
[1722331281271,0.55,3345.8,3345.6,0.986]
[1722331281483,2.98842,3346.3,3345.6,3.97492]
[1722331281692,7.3,3346.4,3345.8,2.98874]
[1722331281693,0.42841743,3346.2,3345.8,2.98874]
[1722331282270,0.42841743,3346.2,3345.9,0.13297526]
[1722331282759,0.42841743,3346.2,3345.9,3.12168526]
[1722331282928,3.0,3346.3,3345.9,3.12168526]
[1722331283128,0.55,3346.2,3345.9,3.12168526]
[1722331287736,7.3,3346.4,3346.2,2.98837]
[1722331287930,7.3,3346.9,3346.7,2.98796]
[1722331288197,7.3,3346.9,3346.8,3.97392]
[1722331288371,7.3,3346.9,3346.6,0.986]
[1722331288703,7.3,3346.9,3346.8,0.13262976]
[1722331288831,7.3,3346.9,3346.4,3.97422]
[1722331289034,7.3,3346.9,3346.8,0.13262976]
[1722331289267,7.3,3346.9,3346.5,2.98817]
[1722331289533,7.3,3346.9,3346.8,0.13234197]
[1722331289675,7.3,3346.9,3346.5,5.97624]
[1722331290041,7.3,3346.9,3346.6,0.13234197]
[1722331290442,7.3,3346.9,3346.6,3.12043197]
[1722331290695,7.3,3346.9,3346.7,2.98795]
[1722331290893,7.3,3346.9,3346.8,2.98792]
[1722331291039,7.3,3346.9,3346.8,3.97392]
[1722331291243,7.3,3346.9,3346.8,4.10624426]
[1722331291684,2.3261,3347.4,3346.9,2.98783]
[1722331291685,5.3135,3347.4,3346.9,2.98783]
[1722331291887,0.55,3347.3,3346.8,0.13232426]
[1722331292094,3.53755,3347.3,3346.7,2.98794]
[1722331292245,3.53755,3347.3,3346.9,0.13232426]
[1722331292444,3.53755,3347.3,3346.7,2.98794]
[1722331292776,3.53755,3347.3,3346.8,0.13232426]
[1722331292975,3.53755,3347.3,3346.7,2.98794]
[1722331293139,3.53755,3347.3,3346.9,0.13154498]
[1722331293349,3.53755,3347.3,3346.7,2.98794]
[1722331293552,3.53755,3347.3,3347.0,0.13154498]
[1722331293863,3.53755,3347.3,3346.7,2.98794]
[1722331294271,3.53755,3347.3,3346.8,0.13154498]
[1722331294648,3.53755,3347.3,3346.7,2.98794]
[1722331295001,3.53755,3347.3,3346.8,0.13154498]
[1722331295185,3.53755,3347.3,3346.7,2.98794]
[1722331295380,3.53755,3347.3,3346.9,0.13154498]
[1722331295563,3.53755,3347.3,3346.7,2.98794]
[1722331295772,3.53755,3347.3,3347.0,0.13154498]
[1722331295983,3.53755,3347.3,3346.7,2.98794]
[1722331296185,3.53755,3347.3,3347.1,0.13154498]
[1722331296498,0.55,3347.3,3346.8,2.98787]
[1722331296694,0.55,3347.3,3346.9,2.98775]
[1722331296896,0.55,3347.3,3347.1,2.98759]
[1722331297129,3.55,3347.4,3347.1,2.98759]
[1722331297512,3.55,3347.4,3347.2,0.13154498]
[1722331298756,3.55,3347.4,3347.0,2.9877]
[1722331298955,3.55,3347.4,3347.3,0.13154498]
[1722331299197,3.55,3347.4,3347.0,2.9877]
[1722331299406,3.55,3347.4,3347.3,0.13154498]
[1722331299570,3.55,3347.4,3347.0,2.9877]
[1722331299777,3.55,3347.4,3347.3,0.13154498]
[1722331299980,3.55,3347.4,3347.0,2.9877]
[1722331300178,3.55,3347.4,3347.3,0.13154498]
[1722331300399,3.55,3347.4,3347.0,2.9877]
[1722331300579,3.55,3347.4,3347.3,0.13154498]
[1722331300781,3.55,3347.4,3347.0,2.9877]
[1722331301012,0.55,3347.4,3347.3,0.13154498]
[1722331301214,0.55,3347.4,3347.0,2.9877]
[1722331301546,0.55,3347.4,3347.3,0.13154498]
[1722331301845,0.55,3347.4,3347.1,0.13154498]
[1722331301990,0.55,3347.4,3347.0,2.9877]
[1722331302186,0.55,3347.4,3347.2,0.13154498]
[1722331302442,0.55,3347.4,3347.0,2.9877]
[1722331302596,0.55,3347.4,3347.3,0.13154498]
[1722331302791,0.55,3347.4,3347.0,2.9877]
[1722331302996,0.55,3347.4,3347.3,0.13154498]
[1722331303239,0.55,3347.4,3347.0,2.9877]
[1722331303447,0.55,3347.4,3347.3,0.13154498]
[1722331303594,0.55,3347.4,3347.0,2.9877]
[1722331303798,0.55,3347.4,3347.3,0.13154498]
[1722331304112,0.55,3347.4,3347.0,2.9877]
[1722331304429,0.55,3347.4,3346.8,2.98786]
[1722331304596,3.53739,3347.4,3347.1,0.13154498]
[1722331304827,3.53739,3347.4,3346.9,2.98783]
[1722331305340,0.55,3347.4,3347.0,3.11922741]
[1722331307459,0.55,3347.4,3347.1,2.98759]
[1722331307965,0.55,3347.5,3347.2,0.13148741]
[1722331309168,0.55,3347.5,3347.2,3.11899741]